bitfinex-derivatives/quotes_BTCF0:USTF0_20250130
["timestamp","ask_amount","ask_price","bid_price","bid_amount"]
[1738208922176,0.65529781,105140.0,105130.0,0.24174399]
[1738208922371,0.551032,105140.0,105130.0,0.24174399]
[1738208924478,0.70049781,105140.0,105130.0,0.24174399]
[1738208925175,0.70049781,105140.0,105130.0,0.22966384]
[1738208926677,0.71873881,105140.0,105130.0,0.11003884]
[1738208926983,0.19025,105130.0,105120.0,0.28264266]
[1738208927173,0.66393162,105130.0,105100.0,0.49967461]
[1738208927374,1.01615181,105110.0,105100.0,0.49967461]
[1738208927681,1.06511181,105110.0,105100.0,0.49967461]
[1738208927977,1.06511181,105110.0,105100.0,0.1]
[1738208928780,1.06495181,105110.0,105100.0,0.1]
[1738208928980,1.06795181,105110.0,105100.0,0.1]
[1738208929277,1.06795181,105110.0,105100.0,0.104]
[1738208929779,1.06795181,105110.0,105100.0,0.1344]
[1738208930577,1.06995181,105110.0,105100.0,0.1304]
[1738208931776,1.06995181,105110.0,105100.0,1.6304]
[1738208932281,1.06995181,105110.0,105100.0,0.1304]
[1738208932683,1.02115181,105110.0,105100.0,0.1304]
[1738208932879,1.06983181,105110.0,105100.0,0.1]
[1738208935074,1.07007181,105110.0,105100.0,0.1]
[1738208936080,0.916886,105110.0,105100.0,0.1]
[1738208936283,1.02115181,105110.0,105100.0,0.1]
[1738208936780,1.07007181,105110.0,105100.0,0.1]
[1738208938281,1.02115181,105110.0,105100.0,0.1]
[1738208938680,0.916886,105110.0,105100.0,0.1]
[1738208941187,1.02115181,105110.0,105100.0,0.1]
[1738208943093,1.02115181,105110.0,105100.0,0.1184702]
[1738208947688,1.02115181,105110.0,105100.0,0.1]
[1738208947892,0.190304,105100.0,105090.0,0.0001426]
[1738208948090,0.75963562,105100.0,105090.0,0.0001426]
[1738208948487,0.79123562,105100.0,105090.0,0.0001426]
[1738208948694,0.190322,105090.0,105080.0,0.0626]
[1738208948900,0.80717362,105090.0,105080.0,0.0626]
[1738208949287,0.190358,105070.0,105060.0,1.90080586]
[1738208949483,0.911958,105070.0,105060.0,1.9504683]
[1738208949887,1.01622381,105070.0,105060.0,1.9504683]
[1738208950088,1.01622381,105070.0,105060.0,1.93170586]
[1738208950382,1.06381281,105070.0,105060.0,0.005]
[1738208951087,1.09481281,105070.0,105060.0,0.005]
[1738208952097,1.09581281,105070.0,105060.0,0.005]
[1738208952305,0.190377,105060.0,105050.0,0.32526021]
[1738208952490,0.551177,105060.0,105050.0,0.32526021]
[1738208952691,0.551177,105060.0,105050.0,0.2405091]
[1738208952896,0.551177,105060.0,105050.0,0.0501141]
[1738208953296,0.65544281,105060.0,105050.0,0.0501141]
[1738208953499,0.65844281,105060.0,105050.0,0.0501141]
[1738208954499,0.65844281,105060.0,105050.0,0.0314426]
[1738208958001,0.65844281,105060.0,105050.0,0.0001426]
[1738208958303,0.190413,105040.0,105030.0,0.03412803]
[1738208958607,0.912013,105040.0,105030.0,0.06712803]
[1738208958808,0.912013,105040.0,105030.0,1.56712803]
[1738208959508,1.01627881,105040.0,105030.0,1.56712803]
[1738208959801,0.912013,105040.0,105030.0,1.86382484]
[1738208960201,0.912013,105040.0,105030.0,1.56912803]
[1738208960404,0.912013,105040.0,105030.0,1.57112803]
[1738208960799,0.912013,105040.0,105030.0,0.07112803]
[1738208961106,1.01627881,105040.0,105030.0,0.00542803]
[1738208962004,0.912013,105040.0,105030.0,0.00542803]
[1738208962402,1.01627881,105040.0,105030.0,0.00542803]
[1738208967415,0.93013162,105040.0,104990.0,1.07490415]
[1738208967607,0.49506581,105040.0,105010.0,0.46506581]
[1738208967809,0.0168715,105050.0,105030.0,0.46506581]
[1738208968016,0.08514091,105070.0,105040.0,0.52726581]
[1738208968217,0.74993691,105070.0,105060.0,0.190377]
[1738208968512,0.19877391,105070.0,105060.0,2.15544281]
[1738208968721,0.38913191,105070.0,105060.0,2.15544281]
[1738208969415,0.39513191,105070.0,105060.0,1.691377]
[1738208969604,0.39513191,105070.0,105060.0,1.79564281]
[1738208969800,0.74993191,105070.0,105060.0,1.79464281]
[1738208970113,0.74993191,105070.0,105060.0,1.5]
[1738208971207,0.74993191,105070.0,105050.0,0.31131873]
[1738208971508,0.3608,105060.0,105050.0,0.31131873]
[1738208971815,0.74993191,105070.0,105050.0,1.81131873]
[1738208972014,0.190377,105060.0,105050.0,1.81131873]
[1738208972517,0.190377,105060.0,105050.0,1.81331873]
[1738208972715,0.551165,105070.0,105050.0,1.98373073]
[1738208972904,0.551165,105070.0,105060.0,0.190377]
[1738208974416,0.3608,105070.0,105050.0,1.62493073]
[1738208974629,0.190377,105060.0,105050.0,1.81532073]
[1738208974920,0.190377,105060.0,105050.0,1.81132073]
[1738208975508,0.65544281,105060.0,105050.0,0.01666492]
[1738208975710,0.551177,105060.0,105050.0,0.01866492]
[1738208976220,0.551177,105060.0,105050.0,0.01666492]
[1738208976418,0.551177,105060.0,105050.0,0.01866492]
[1738208977413,0.551177,105060.0,105050.0,0.02066492]
[1738208977817,0.551177,105060.0,105050.0,0.01866492]
[1738208978016,0.65644281,105060.0,105050.0,0.01866492]
[1738208978320,0.65644281,105060.0,105050.0,0.0001426]
[1738208981015,0.552177,105060.0,105050.0,0.0001426]
[1738208981414,0.552177,105060.0,105050.0,1.5001426]
[1738208985815,0.65644281,105060.0,105050.0,1.5001426]
[1738208986419,0.65644281,105060.0,105050.0,0.0001426]
[1738208987020,0.83490862,105060.0,105050.0,0.0001426]
[1738208987322,0.73064281,105060.0,105050.0,0.0001426]
[1738208988224,0.83490862,105060.0,105050.0,0.0001426]
[1738208989028,0.73064281,105060.0,105050.0,0.0001426]
[1738208989424,0.83490862,105060.0,105050.0,0.0001426]
[1738208992919,1.22004953,105060.0,105050.0,6e-07]
[1738208993126,0.190431,105030.0,105020.0,2.01167063]
[1738208993324,0.65549681,105030.0,105020.0,2.01167063]
[1738208994522,0.65549681,105030.0,105020.0,2.01667063]
[1738208995333,0.65549681,105030.0,105020.0,2.02067063]
[1738208996025,0.65549681,105030.0,105020.0,2.01667063]
[1738208996232,0.65549681,105030.0,105020.0,2.01967063]
[1738208997130,0.65549681,105030.0,105020.0,1.508]
[1738208997328,0.69809681,105030.0,105020.0,1.508]
[1738208999029,0.65549681,105030.0,105020.0,1.508]
[1738208999229,0.551231,105030.0,105020.0,0.30271481]
[1738208999528,0.27569851,105040.0,105030.0,0.190431]
[1738208999729,0.27569851,105040.0,105030.0,2.28969681]
[1738209000032,0.27569851,105040.0,105030.0,1.824631]
[1738209000233,0.63649851,105040.0,105030.0,1.824631]
[1738209000438,0.63649851,105040.0,105030.0,1.92889681]
[1738209001130,0.08528351,105040.0,105030.0,1.92889681]
[1738209001327,0.4453062,105050.0,105040.0,0.190413]
[1738209001525,0.2549092,105050.0,105040.0,0.65547881]
[1738209002427,0.2559092,105050.0,105040.0,0.65547881]
[1738209003729,0.1905216,105060.0,105050.0,0.190395]
[1738209003929,0.1905216,105060.0,105050.0,0.29466081]
[1738209004438,0.1905216,105060.0,105050.0,1.79466081]
[1738209004832,0.1905216,105060.0,105050.0,0.29466081]
[1738209005240,0.1915216,105060.0,105050.0,0.29466081]
[1738209007340,0.1915216,105060.0,105050.0,0.190395]
[1738209007634,0.5523216,105060.0,105050.0,0.16945112]
[1738209009131,0.5523216,105060.0,105050.0,0.18453299]
[1738209014745,0.32064987,105090.0,105080.0,0.19034]
[1738209014946,0.11506135,105090.0,105080.0,0.65540581]
[1738209015245,0.31008005,105100.0,105080.0,2.08506581]
[1738209015449,0.50038405,105100.0,105090.0,0.42758781]
[1738209015950,0.3315802,105100.0,105090.0,0.42758781]
[1738209016140,0.1412762,105100.0,105090.0,0.89265362]
[1738209016446,0.16894645,105110.0,105100.0,0.190304]
[1738209016646,0.16894645,105110.0,105100.0,0.65536981]
[1738209017046,0.16894645,105110.0,105100.0,2.15536981]
[1738209018044,0.28156839,105130.0,105100.0,2.10933162]
[1738209018247,0.28156839,105130.0,105120.0,0.65533381]
[1738209019241,0.28156839,105130.0,105120.0,0.74393381]
[1738209020440,0.28456839,105130.0,105120.0,0.74393381]
[1738209020843,0.28556839,105130.0,105120.0,0.74393381]
[1738209021046,0.004,105130.0,105120.0,0.74393381]
[1738209021643,0.003,105130.0,105120.0,0.74393381]
[1738209021836,0.0001426,105140.0,105120.0,0.55566581]
[1738209022048,0.0001426,105140.0,105130.0,0.29451581]
[1738209022548,0.0001426,105140.0,105130.0,1.79451581]
[1738209023048,0.0001426,105140.0,105130.0,1.84151581]
[1738209026035,0.3609426,105140.0,105130.0,1.84151581]
[1738209027338,0.3609426,105140.0,105130.0,1.65126581]
[1738209027538,0.19025,105130.0,105120.0,0.05861833]
[1738209027738,0.55766841,105140.0,105120.0,0.01411833]
[1738209027949,0.4534026,105140.0,105120.0,0.29452281]
[1738209028144,0.55105,105130.0,105120.0,1.79452281]
[1738209029647,0.55105,105130.0,105120.0,1.690257]
[1738209030652,0.55105,105130.0,105120.0,1.79452281]
[1738209031156,0.55205,105130.0,105120.0,1.690257]
[1738209031453,0.55505,105130.0,105120.0,1.690257]
[1738209031845,0.55105,105130.0,105120.0,1.690257]
[1738209032041,0.55105,105130.0,105120.0,1.79452281]
[1738209032249,0.55105,105130.0,105120.0,1.690257]
[1738209032556,0.55405,105130.0,105120.0,1.690257]
[1738209033241,0.3638,105130.0,105120.0,1.690257]
[1738209033646,0.3648,105130.0,105120.0,1.690257]
[1738209034453,0.3608,105130.0,105120.0,1.690257]
[1738209035451,0.3618,105130.0,105120.0,1.690257]
[1738209035854,0.3648,105130.0,105120.0,1.690257]
[1738209036352,0.3648,105130.0,105120.0,1.79452281]
[1738209036559,0.3648,105130.0,105120.0,1.84002281]
[1738209037055,0.3638,105130.0,105120.0,1.735757]
[1738209037451,0.74702241,105140.0,105120.0,1.735757]
[1738209037850,0.3608,105130.0,105120.0,1.735757]
[1738209038255,0.46506581,105130.0,105120.0,1.735757]
[1738209038456,0.55105,105130.0,105120.0,1.690257]
[1738209038949,0.190268,105120.0,105110.0,0.01402933]
[1738209039154,0.89811962,105120.0,105110.0,0.0001426]
[1738209039362,0.79385381,105120.0,105110.0,0.0001426]
[1738209039559,0.79385381,105120.0,105110.0,1.5001426]
[1738209041261,0.79485381,105120.0,105110.0,1.6904286]
[1738209041766,0.690588,105120.0,105110.0,1.6904286]
[1738209042262,0.79485381,105120.0,105110.0,1.6904286]
[1738209042649,0.79485381,105120.0,105110.0,1.5001426]
[1738209043768,0.79485381,105120.0,105110.0,1.6904286]
[1738209045356,0.690588,105120.0,105110.0,1.6904286]
[1738209046253,0.599988,105120.0,105110.0,1.6904286]
[1738209046867,0.70425381,105120.0,105110.0,1.6904286]
[1738209047273,0.70313381,105120.0,105110.0,1.6904286]
[1738209048368,0.598868,105120.0,105110.0,1.6904286]
[1738209048568,0.552068,105120.0,105110.0,1.6904286]
[1738209048766,0.598548,105120.0,105110.0,1.6904286]
[1738209049066,0.598508,105120.0,105110.0,1.7804286]
[1738209049874,0.70277381,105120.0,105110.0,1.7804286]
[1738209050168,0.598508,105120.0,105110.0,1.7804286]
[1738209050865,0.70277381,105120.0,105110.0,1.7804286]
[1738209051779,0.598508,105120.0,105110.0,1.7804286]
[1738209055386,0.70277381,105120.0,105110.0,1.7804286]
[1738209056787,0.598508,105120.0,105110.0,1.7804286]
[1738209057880,0.552068,105120.0,105110.0,1.7804286]
[1738209058080,0.597068,105120.0,105110.0,1.7804286]
[1738209059387,0.552068,105120.0,105110.0,1.7804286]
[1738209059595,0.596788,105120.0,105110.0,1.7804286]
[1738209060485,0.70105381,105120.0,105110.0,1.7804286]
[1738209061888,0.596788,105120.0,105110.0,1.7804286]
[1738209062097,0.596788,105120.0,105110.0,1.94987972]
[1738209062291,0.70105381,105120.0,105110.0,1.94987972]
[1738209062598,0.596788,105120.0,105110.0,1.94987972]
[1738209063088,0.70105381,105120.0,105110.0,1.94987972]
[1738209066884,0.596788,105120.0,105110.0,1.94987972]
[1738209067188,0.80531962,105120.0,105110.0,0.16959372]
[1738209070789,0.80431962,105120.0,105110.0,0.16959372]
[1738209070989,0.81131962,105120.0,105110.0,0.17059372]
[1738209071389,0.8173799,105120.0,105110.0,0.16959372]
[1738209071698,0.8243799,105120.0,105110.0,0.17059372]
[1738209071900,0.8263799,105120.0,105110.0,0.17059372]
[1738209072901,0.8273799,105120.0,105110.0,0.17059372]
[1738209073421,1.13950327,105120.0,105110.0,0.0011426]
[1738209074696,1.13746327,105120.0,105110.0,0.0011426]
[1738209074897,1.09478327,105120.0,105110.0,1.5011426]
[1738209075097,1.03311746,105120.0,105110.0,1.5011426]
[1738209075504,1.13738327,105120.0,105110.0,1.5011426]
[1738209075797,1.03299746,105120.0,105110.0,1.5011426]
[1738209076007,1.13726327,105120.0,105110.0,1.5011426]
[1738209076500,0.96730614,105120.0,105110.0,1.5011426]
[1738209077903,0.82056033,105120.0,105110.0,1.5011426]
[1738209078105,0.86268033,105120.0,105110.0,1.5011426]
[1738209079891,0.86268033,105120.0,105110.0,1.5441426]
[1738209080105,0.86268033,105120.0,105110.0,1.5860426]
[1738209080504,0.97669296,105120.0,105110.0,1.5860426]
[1738209081506,0.81724687,105120.0,105110.0,1.7763286]
[1738209081694,0.26617887,105120.0,105110.0,2.02489441]
[1738209081897,0.55823168,105140.0,105130.0,0.19025]
[1738209081898,0.19743168,105140.0,105130.0,0.19025]
[1738209082094,0.19743168,105140.0,105130.0,0.65531581]
[1738209082309,0.22579598,105150.0,105140.0,0.190232]
[1738209082614,0.22579598,105150.0,105140.0,0.29449781]
[1738209082902,0.97663373,105170.0,105140.0,0.46506581]
[1738209083098,0.97579373,105170.0,105160.0,0.190196]
[1738209084602,0.55241217,105170.0,105160.0,0.190196]
[1738209085103,0.55441217,105170.0,105160.0,0.190196]
[1738209086199,0.55441217,105170.0,105160.0,0.191196]
[1738209088004,0.36422717,105170.0,105160.0,0.191196]
[1738209088305,0.3628,105170.0,105160.0,0.29546181]
[1738209088793,0.3628,105170.0,105160.0,1.79546181]
[1738209090097,0.3628,105170.0,105160.0,1.80779432]
[1738209091706,0.0001426,105180.0,105170.0,0.190177]
[1738209092802,0.0001426,105180.0,105170.0,0.191177]
[1738209095204,0.0001426,105180.0,105170.0,0.29544281]
[1738209095405,0.0001426,105180.0,105170.0,0.191177]
[1738209095603,0.0001426,105180.0,105170.0,0.29544281]
[1738209095813,0.0001426,105180.0,105170.0,0.91050862]
[1738209096007,0.1472,105200.0,105190.0,0.190141]
[1738209096312,0.1472,105200.0,105190.0,2.15520681]
[1738209096607,0.1472,105200.0,105190.0,2.050941]
[1738209096909,0.1,105200.0,105190.0,2.050941]
[1738209097508,0.1,105200.0,105190.0,2.051941]
[1738209098511,0.1,105200.0,105190.0,2.15620681]
[1738209103602,0.1,105200.0,105190.0,2.16884557]
[1738209105513,0.1,105200.0,105190.0,1.80804557]
[1738209105714,0.1,105200.0,105190.0,2.16884557]
[1738209108216,0.1,105200.0,105190.0,2.28884557]
[1738209108825,0.1,105200.0,105190.0,2.16884557]
[1738209109412,0.1,105200.0,105190.0,2.21884557]
[1738209109809,0.1,105200.0,105190.0,2.16884557]
[1738209117118,0.1,105200.0,105190.0,2.06457976]
[1738209117324,0.79822881,105200.0,105190.0,0.01363876]
[1738209117631,0.693963,105200.0,105190.0,0.20377976]
[1738209117923,0.1,105200.0,105190.0,1.70377976]
[1738209118124,0.1,105200.0,105190.0,3.12612099]
[1738209118623,0.32817399,105210.0,105200.0,0.190123]
[1738209120129,0.32817399,105210.0,105200.0,0.191123]
[1738209120430,0.4324398,105210.0,105200.0,0.191123]
[1738209121424,0.7932398,105210.0,105200.0,0.191123]
[1738209121730,0.7932398,105210.0,105200.0,0.001]
[1738209122625,0.7932398,105210.0,105200.0,0.191123]
[1738209122826,0.13806899,105210.0,105200.0,0.551923]
[1738209123028,0.00156899,105210.0,105200.0,0.75618881]
[1738209123222,0.63654195,105230.0,105220.0,0.190087]
[1738209123523,0.63654195,105230.0,105210.0,0.3608]
[1738209123723,0.29436181,105220.0,105200.0,0.190109]
[1738209123927,0.29436181,105220.0,105190.0,1.04075464]
[1738209123928,0.29436181,105220.0,105210.0,0.190105]
[1738209124129,0.29436181,105220.0,105210.0,1.690105]
[1738209124328,0.10426581,105220.0,105210.0,1.690105]
[1738209124828,0.99734895,105230.0,105220.0,0.190087]
[1738209125130,0.99734895,105230.0,105210.0,1.5]
[1738209125428,0.99734895,105230.0,105220.0,0.190087]
[1738209125944,0.01061454,105250.0,105240.0,0.190051]
[1738209126125,0.01061454,105250.0,105240.0,0.65511681]
[1738209126331,0.01061454,105250.0,105240.0,0.190051]
[1738209126521,0.01061454,105250.0,105240.0,2.050851]
[1738209127021,0.01061454,105250.0,105240.0,2.096551]
[1738209127221,0.01061454,105250.0,105240.0,2.20181681]
[1738209127421,0.10426581,105250.0,105240.0,1.501]
[1738209127623,0.29429881,105250.0,105240.0,1.691047]
[1738209127822,0.74669881,105250.0,105240.0,1.51307536]
[1738209128022,0.74669881,105250.0,105240.0,1.70312636]
[1738209128422,0.642433,105250.0,105240.0,0.20312636]
[1738209128621,0.642433,105250.0,105240.0,0.01307536]
[1738209128622,0.74669881,105250.0,105240.0,0.01307536]
[1738209128824,0.79769881,105250.0,105240.0,0.001]
[1738209129023,0.693433,105250.0,105240.0,0.001]
[1738209129530,0.693433,105250.0,105240.0,0.191051]
[1738209129732,0.693433,105250.0,105240.0,0.29531681]
[1738209129733,0.281633,105250.0,105240.0,0.29531681]
[1738209130030,0.0916,105250.0,105240.0,0.29531681]
[1738209130332,0.55224401,105260.0,105250.0,0.190033]
[1738209130531,0.55224401,105260.0,105250.0,0.29429881]
[1738209130829,0.65650982,105260.0,105250.0,0.190033]
[1738209131031,0.65650982,105260.0,105240.0,1.14762894]
[1738209131419,0.46649182,105260.0,105240.0,1.14762894]
[1738209131628,0.550833,105250.0,105240.0,1.14762894]
[1738209131832,0.65509881,105250.0,105240.0,1.14762894]
[1738209132032,0.190033,105250.0,105240.0,1.14762894]
[1738209132329,0.00142601,105260.0,105240.0,1.42265175]
[1738209132629,0.645405,105270.0,105260.0,0.190015]
[1738209132833,0.74967081,105270.0,105260.0,0.190015]
[1738209133325,0.74967081,105270.0,105250.0,0.1911686]
[1738209133326,0.190015,105260.0,105250.0,0.1911686]
[1738209133632,0.46506581,105260.0,105250.0,0.1911686]
[1738209133828,0.15196581,105260.0,105250.0,0.1901686]
[1738209134327,0.70278081,105260.0,105250.0,0.1901686]
[1738209134528,0.70278081,105260.0,105250.0,1.05615908]
[1738209134725,0.60745514,105260.0,105250.0,1.05615908]
[1738209135431,0.190001,105270.0,105250.0,0.97039889]
[1738209135623,0.284002,105270.0,105260.0,0.190015]
[1738209135830,0.74906781,105270.0,105260.0,0.190015]
[1738209136025,0.38826781,105270.0,105260.0,0.190015]
[1738209136227,0.38826781,105270.0,105260.0,0.18987985]
[1738209136529,0.74906781,105270.0,105260.0,0.18987985]
[1738209136730,0.38826781,105270.0,105260.0,0.18987985]
[1738209137725,0.38826781,105270.0,105260.0,0.19087985]
[1738209138131,0.284002,105270.0,105260.0,0.19087985]
[1738209140737,0.284002,105270.0,105260.0,0.90407391]
[1738209141735,0.644802,105270.0,105260.0,0.90407391]
[1738209141936,0.74906781,105270.0,105260.0,0.71419406]
[1738209142132,0.74906781,105270.0,105260.0,0.90420906]
[1738209143937,0.38826781,105270.0,105260.0,0.90320906]
[1738209144139,0.38826781,105270.0,105260.0,0.90420906]
[1738209144839,0.74906781,105270.0,105260.0,0.16905306]
[1738209145036,0.80182781,105270.0,105260.0,0.35906806]
[1738209145941,0.698562,105270.0,105260.0,0.35906806]
[1738209146441,0.337762,105270.0,105260.0,0.35906806]
[1738209146631,0.284002,105270.0,105260.0,0.35906806]
[1738209147032,0.284002,105270.0,105260.0,0.46333387]
[1738209147239,0.284002,105270.0,105260.0,0.35906806]
[1738209147935,0.550782,105280.0,105270.0,0.189997]
[1738209148639,0.550782,105280.0,105270.0,1.689997]
[1738209149243,0.550782,105280.0,105270.0,1.690997]
[1738209149535,0.3608,105280.0,105270.0,1.79526281]
[1738209149742,0.64450844,105290.0,105280.0,0.189979]
[1738209150136,0.74877425,105290.0,105270.0,1.79539741]
[1738209150439,0.64450844,105290.0,105280.0,0.29424481]
[1738209150646,0.64450844,105290.0,105280.0,0.189979]
[1738209151533,0.189979,105280.0,105270.0,0.20232531]
[1738209151737,0.29424481,105280.0,105270.0,0.20232531]
[1738209152044,0.29424481,105280.0,105270.0,1.98245661]
[1738209152244,0.29424481,105280.0,105270.0,1.98145661]
[1738209152441,0.189979,105280.0,105270.0,1.98245661]
[1738209152640,0.55880825,105290.0,105270.0,1.98245661]
[1738209152845,0.29424481,105280.0,105270.0,1.98245661]
[1738209153046,0.65504481,105280.0,105270.0,0.29246261]
[1738209153235,0.65504481,105280.0,105270.0,0.2812739]
[1738209153436,0.65504481,105280.0,105270.0,0.2802739]
[1738209153743,0.65504481,105280.0,105270.0,0.2812739]
[1738209154538,0.65504481,105280.0,105270.0,0.2802739]
[1738209154741,0.65504481,105280.0,105260.0,0.52616556]
[1738209154742,0.189997,105270.0,105260.0,0.33615756]
[1738209155045,0.190058,105240.0,105230.0,0.190067]
[1738209155236,0.190058,105240.0,105230.0,0.20162031]
[1738209155536,0.550858,105240.0,105230.0,0.30588612]
[1738209155746,0.3608,105240.0,105230.0,0.30588612]
[1738209155948,0.0001426,105250.0,105240.0,0.190051]
[1738209156137,0.0001426,105250.0,105240.0,0.33941681]
[1738209156637,0.0001426,105250.0,105240.0,1.83941681]
[1738209157535,0.1901756,105250.0,105240.0,1.735151]
[1738209157739,0.0001426,105250.0,105240.0,1.83941681]
[1738209157943,0.0001426,105250.0,105240.0,2.20021681]
[1738209158340,0.0001426,105250.0,105240.0,3.09689653]
[1738209158644,0.1901756,105250.0,105240.0,2.99263072]
[1738209159147,0.18993483,105250.0,105240.0,2.63183072]
[1738209160936,0.18993483,105250.0,105240.0,2.14422736]
[1738209161240,0.55073483,105250.0,105240.0,2.14422736]
[1738209161446,0.18993483,105250.0,105240.0,2.14422736]
[1738209162438,0.55073483,105250.0,105240.0,2.14422736]
[1738209164544,0.18993483,105250.0,105240.0,2.14422736]
[1738209164747,0.55073483,105250.0,105240.0,2.14422736]
[1738209165146,0.18993483,105250.0,105240.0,2.14422736]
[1738209165739,0.65500064,105250.0,105240.0,0.40907636]
[1738209166950,0.65500064,105250.0,105240.0,0.59912736]
[1738209167456,0.55073483,105250.0,105240.0,0.59912736]
[1738209167949,0.18993483,105250.0,105240.0,0.59912736]
[1738209169352,0.65500064,105250.0,105240.0,0.59912736]
[1738209170154,0.65500064,105250.0,105240.0,0.40907636]
[1738209170348,0.74900064,105250.0,105240.0,0.40907636]
[1738209170850,0.55906581,105250.0,105240.0,0.40907636]
[1738209171045,0.79977881,105250.0,105240.0,0.59912736]
[1738209172847,0.79977881,105250.0,105240.0,0.82402387]
[1738209174154,0.70500381,105260.0,105250.0,0.190033]
[1738209174857,0.70500081,105260.0,105250.0,1.5]
[1738209175047,0.70500081,105260.0,105250.0,1.690033]
[1738209175357,0.70500081,105260.0,105250.0,0.190033]
[1738209175756,0.190033,105250.0,105240.0,1.6901886]
[1738209176054,0.65509881,105250.0,105240.0,1.6901886]
[1738209177455,0.65509881,105250.0,105240.0,0.1901886]
[1738209178041,0.65509881,105250.0,105240.0,0.0001426]
[1738209179156,0.65509881,105250.0,105240.0,0.22498053]
[1738209182048,0.550833,105250.0,105240.0,0.22498053]
[1738209182249,0.3608,105260.0,105240.0,0.69004634]
[1738209182450,0.6967,105270.0,105260.0,0.190015]
[1738209182654,0.19,105270.0,105260.0,0.29428081]
[1738209182860,0.19,105270.0,105260.0,0.190015]
[1738209183057,0.19,105270.0,105260.0,1.690015]
[1738209183359,0.19,105270.0,105260.0,1.79428081]
[1738209184359,0.19,105270.0,105260.0,0.29428081]
[1738209184855,0.5508,105270.0,105260.0,1.79428081]
[1738209185061,0.5508,105270.0,105260.0,1.5]
[1738209185361,0.5508,105270.0,105260.0,2.2028357]
[1738209186152,0.5508,105270.0,105260.0,0.7028357]
[1738209187954,0.5508,105270.0,105260.0,0.80710151]
[1738209188155,0.59976,105270.0,105260.0,0.99711651]
[1738209188663,0.59976,105270.0,105260.0,0.51935505]
[1738209189053,0.5508,105270.0,105260.0,0.51935505]
[1738209189759,0.19,105270.0,105260.0,0.51935505]
[1738209190166,0.5508,105270.0,105260.0,0.51935505]
[1738209190365,0.19,105270.0,105260.0,0.51935505]
[1738209190866,0.5508,105270.0,105260.0,0.51935505]
[1738209191658,0.5508,105270.0,105260.0,0.5754304]
[1738209194376,0.5508,105270.0,105260.0,0.99165406]
[1738209194561,0.5508,105270.0,105260.0,1.32891096]
[1738209195171,0.5508,105270.0,105260.0,1.3400156]
[1738209195368,0.5508,105270.0,105260.0,1.23574979]
[1738209198076,0.5508,105270.0,105260.0,0.36975067]
[1738209198278,0.5508,105270.0,105260.0,0.69885785]
[1738209201474,0.5508,105270.0,105260.0,2.19885785]
[1738209201676,0.5508,105270.0,105260.0,2.09459204]
[1738209202171,0.5508,105270.0,105260.0,2.0834874]
[1738209202376,0.5508,105270.0,105260.0,0.68775321]
[1738209204073,0.5508,105270.0,105260.0,0.99948761]
[1738209204789,0.3608,105270.0,105260.0,0.99948761]
[1738209207289,0.550784,105280.0,105270.0,0.189997]
[1738209207486,0.550784,105280.0,105270.0,0.29426281]
[1738209208584,0.55080544,105290.0,105280.0,0.189979]
[1738209208793,0.55080544,105290.0,105280.0,0.336679]
[1738209209088,0.65507125,105290.0,105280.0,0.336679]
[1738209209584,0.46510825,105290.0,105270.0,1.51127839]
[1738209209786,0.65504481,105280.0,105270.0,0.01127839]
[1738209209994,0.65504481,105280.0,105270.0,0.70507338]
[1738209211296,0.65504481,105280.0,105270.0,0.89507038]
[1738209211792,0.65504481,105280.0,105270.0,0.70507338]
[1738209211992,0.70264481,105280.0,105270.0,0.70507338]
[1738209212196,0.644699,105280.0,105270.0,0.70507338]
[1738209212390,0.644699,105280.0,105270.0,0.89507038]
[1738209213095,0.74896481,105280.0,105270.0,0.89507038]
[1738209213297,0.70264481,105280.0,105270.0,0.89507038]
[1738209213481,0.74880481,105280.0,105270.0,0.89507038]
[1738209213895,0.70264481,105280.0,105270.0,0.89507038]
[1738209214102,0.74868481,105280.0,105270.0,0.89507038]
[1738209215495,0.36084244,105290.0,105270.0,0.70507338]
[1738209215706,0.47619723,105300.0,105270.0,0.70507338]
[1738209215707,0.4641,105300.0,105280.0,0.189979]
[1738209216007,0.563729,105310.0,105290.0,0.550761]
[1738209216194,0.3738,105310.0,105300.0,0.189943]
[1738209216994,0.47806581,105310.0,105300.0,0.189943]
[1738209217190,0.11726581,105310.0,105300.0,0.189943]
[1738209217489,0.47806581,105310.0,105300.0,0.189943]
[1738209217697,0.66799081,105310.0,105300.0,0.189943]
[1738209218001,0.30719081,105310.0,105300.0,0.189943]
[1738209218197,0.66799081,105310.0,105290.0,0.0001426]
[1738209218391,0.65500881,105300.0,105290.0,0.0001426]
[1738209218587,0.46506581,105300.0,105290.0,0.1901036]
[1738209218791,0.10426581,105300.0,105290.0,0.1901036]
[1738209218990,0.65500881,105300.0,105290.0,0.1901036]
[1738209219699,0.5213,105310.0,105290.0,0.29436941]
[1738209220100,0.5213,105310.0,105300.0,0.22467491]
[1738209220302,0.62556581,105310.0,105300.0,0.22467491]
[1738209220497,0.4221,105310.0,105300.0,0.22467491]
[1738209220693,0.0613,105310.0,105300.0,0.22467491]
[1738209220893,0.16556581,105310.0,105300.0,0.22467491]
[1738209221294,0.0613,105310.0,105300.0,0.22467491]
[1738209221594,0.16556581,105310.0,105300.0,0.22467491]
[1738209222101,0.16556581,105310.0,105300.0,0.22567491]
[1738209223199,0.52636581,105310.0,105300.0,0.22567491]
[1738209223586,0.70379081,105310.0,105300.0,0.22567491]
[1738209223786,0.80805662,105310.0,105300.0,0.22567491]
[1738209224204,0.80805662,105310.0,105300.0,0.39395193]
[1738209224887,0.91813162,105310.0,105290.0,0.28115877]
[1738209225093,0.189979,105280.0,105270.0,0.3372569]
[1738209225299,0.189997,105270.0,105260.0,0.00142458]
[1738209225602,0.65506281,105270.0,105260.0,0.00142458]
[1738209225806,0.65499381,105310.0,105270.0,0.189985]
[1738209226006,0.65499381,105310.0,105290.0,0.46506581]
[1738209226007,0.550728,105310.0,105290.0,0.46506581]
[1738209226300,0.0001426,105300.0,105290.0,0.46506581]
[1738209226495,0.0001426,105300.0,105290.0,1.96506581]
[1738209226889,0.0001426,105300.0,105290.0,2.15502681]
[1738209227090,0.0001426,105300.0,105290.0,2.050761]
[1738209227496,0.04498791,105320.0,105290.0,2.31506581]
[1738209227698,0.3608,105350.0,105320.0,0.189898]
[1738209227998,0.3608,105350.0,105330.0,0.51736581]
[1738209228203,0.3608,105350.0,105340.0,0.10426581]
[1738209228502,0.46506581,105350.0,105330.0,1.5523]
[1738209228701,0.3608,105340.0,105330.0,1.5524426]
[1738209228899,0.3608,105350.0,105330.0,1.9132426]